Cogmind - Beta 12 @@@ ROGUE MODE // 2023.03.11 @ 16:45:58 Player: arcadio rl Result: Destroyed by G-47 Trooper with Particle Gun Performance ------------- Evolutions (0) 0 Regions Visited (2) 400 Robots Destroyed (17) 85 Value Destroyed (326) 326 Prototype IDs (5) 100 Alien Tech Used (0) 0 Bonus (0) 0 TOTAL SCORE: 911 Bonus ------- None Cogmind --------- Core Integrity 0/250 Matter 295/300 Energy 100/100 System Corruption 0% Temperature Cool (9) Movement Walking (120) Location -10/Mines Parts ------- > --- POWER (1) -------- (None) > --- PROPULSION (2) --- Aluminum Leg Aluminum Leg > --- UTILITY (2) ------ Small Storage Unit > --- WEAPON (2) ------- Mining Claw Mining Claw > --- INVENTORY (8) ---- Flight Unit Signal Interpreter Light Armor Plating Authchip [Device] Datajack Mining Laser Mining Claw Peak State ------------ > --- POWER ------------ Ion Engine > --- PROPULSION ------- Light Treads Compact Wheel > --- UTILITY ---------- Small Storage Unit Sensor Array > --- WEAPON ----------- Mining Claw Mining Claw > --- INVENTORY -------- Aluminum Leg Flight Unit Signal Interpreter Light Armor Plating Authchip [Device] Datajack Mining Laser Mining Claw [Rating: 8] Favorites ----------- Power Ion Engine Engine Ion Engine Propulsion Compact Wheel Treads Light Treads Leg Aluminum Leg Wheel Compact Wheel Utility Small Storage Unit Device Sensor Array Storage Small Storage Unit Weapon Mining Claw Energy Gun Small Laser Slashing Weapon Mining Claw Build | -11 -10 -10 ------- Run | Jun Mat Min Slots Evolved . | . . . Power . | . . . Propulsion . | . . . Utility . | . . . Weapon . | . . . Parts Attached 27 | 8 13 6 Power 7 | 1 4 2 Engine 7 | 1 4 2 Core . | . . . Reactor . | . . . Propulsion 9 | 4 1 4 Treads 3 | 2 1 . Leg 3 | . . 3 Wheel 3 | 2 . 1 Hover . | . . . Flight . | . . . Utility 5 | 1 4 . Device 3 | . 3 . Storage 2 | 1 1 . Processor . | . . . Hackware . | . . . Protection . | . . . Artifact . | . . . Weapon 6 | 2 4 . Energy Gun 3 | 2 1 . Energy Cannon . | . . . Ballistic Gun . | . . . Ballistic Cannon . | . . . Launcher . | . . . Special Weapon . | . . . Impact Weapon . | . . . Slashing Weapon 3 | . 3 . Piercing Weapon . | . . . Special Melee Weapon . | . . . Unidentified Prototypes . | . . . Parts Lost 8 | . 3 5 Power 3 | . 1 2 Propulsion 4 | . 2 2 Utility 1 | . . 1 Weapon . | . . . Highest Loss Streak 4 | . 1 4 To Critical Strikes . | . . . Average Slot Usage (%) 97 | . 99 94 Engine 13 | . 13 13 Treads 7 | . 10 . Leg 3 | . . 14 Wheel 16 | . 17 12 Device 12 | . 13 11 Storage 14 | . 14 14 Energy Gun 2 | . 4 . Slashing Weapon 24 | . 23 28 Naked Turns . | . . . Heaviest Build 15 | 12 15 15 Greatest Support 40 | 40 32 26 Greatest Overweight (x) 4 | 3 4 1 Average Overweight (x) . | . . . Largest Inventory Capacity 8 | 8 8 8 Average Capacity 7 | 7 8 8 Most Carried 8 | 6 8 8 Average Carried 7 | 2 7 7 Final Capacity 8 | 8 8 8 Final Carried 8 | 6 8 7 Class Distribution -------------------- 100% | Mutant Dominant Class ---------------- Mutant | -10/Materials Mutant | -10/Mines Resources | -11 -10 -10 ----------- Run | Jun Mat Min Matter Collected 450 | 235 175 40 Remotely . | . . . Salvage Created 548 | . 435 113 Parts 42 | . 37 5 Haulers Intercepted 2 | . 2 . Recyclers Shooed . | . . . Parts Field Recycled . | . . . Retrieved Matter . | . . . Parts Self-Destructed . | . . . Prevented . | . . . Kills | -11 -10 -10 ------- Run | Jun Mat Min Combat Hostiles Destroyed 10 | . 8 2 Melee 8 | . 6 2 Guns 2 | . 2 . Classes Destroyed 6 | . 6 . Worker 2 | . 1 1 Tunneler 1 | . 1 . Hauler 2 | . 2 . Watcher 2 | . 2 . Swarmer 3 | . 3 . Grunt 7 | . 5 2 Best Kill Streak 4 | . 4 2 Combat Bots Only 3 | . 3 2 Max Kills in Single Turn 1 | . 1 1 Gunslinging . | . . . Exploded . | . . . Melee 1 | . 1 1 Uniques/NPCs Destroyed . | . . . Combat | -11 -10 -10 -------- Run | Jun Mat Min Damage Taken 911 | . 685 226 Core 259 | . 197 62 Absorbed by Shields . | . . . Regen/Repaired (Parts) 17 | . 17 . Core Remaining (%) 100 | 100 . . Volleys Fired 14 | . 14 . Largest 2 | . 2 . Hottest 90 | . 90 . Shots Fired 28 | . 28 . Gun 28 | . 28 . Cannon . | . . . Launcher . | . . . Special . | . . . Kinetic . | . . . Thermal 28 | . 28 . Explosive . | . . . Electromagnetic . | . . . Robot Hit Streak 7 | . 7 . Robot Miss Streak 3 | . 3 . Penetration Max . | . . . Secondary Targets . | . . . Shots Hit Robots 53 | . 41 12 Core Hits 23 | . 20 3 Critical Kills . | . . . Critical Parts Destroyed . | . . . Critical Strikes . | . . . Melee Attacks 58 | . 44 14 Impact . | . . . Slashing 58 | . 44 14 Piercing . | . . . Sneak Attacks 6 | . 5 1 Combat Hostiles . | . . . Follow-up Attacks 11 | . 8 3 Damage Inflicted 1175 | . 911 264 Guns 213 | . 213 . Cannons . | . . . Explosions . | . . . Melee 961 | . 697 264 Ramming 1 | . 1 . Kinetic . | . . . Thermal 213 | . 213 . Explosive . | . . . Electromagnetic . | . . . Impact . | . . . Slashing 961 | . 697 264 Piercing . | . . . Highest Corruption . | . . . Average Corruption . | . . . Corruption Purged . | . . . Corruption Blocked . | . . . Overload Shots . | . . . Overflow Damage 27 | . 27 . Projectiles . | . . . Explosions . | . . . Melee 27 | . 27 . Knockbacks . | . . . Impact . | . . . Kinetic . | . . . Secondary . | . . . Self-Inflicted Damage . | . . . Shots . | . . . Rammed 1 | . 1 . Targets Rammed 1 | . 1 . Kicked . | . . . Crushed . | . . . Highest Temperature 42 | . 42 3 Average Temperature 25 | . 26 3 Received Heat Transfer 447 | . 303 144 Siege Activations . | . . . Robots Corrupted . | . . . Combat Hostiles . | . . . Parts Fried . | . . . Impact Corruptions . | . . . Robots Melted . | . . . Combat Hostiles . | . . . Parts Melted 1 | . 1 . Heat Transferred 558 | . 558 . Parts Sabotaged . | . . . Parts Stolen . | . . . Parts Stripped . | . . . Power Chain Reactions . | . . . Missiles Intercepted . | . . . Alert | -11 -10 -10 ------- Run | Jun Mat Min Peak Influence 152 | . 152 60 Initial 6 | . . 6 Average 36 | . 45 15 Maximum Alert Level . | . . . Low Security (%) 100 | 100 100 100 Level 1 . | . . . Level 2 . | . . . Level 3 . | . . . Level 4 . | . . . Level 5 . | . . . High Security . | . . . Max Security . | . . . Squads Dispatched 3 | . 3 . Investigation 2 | . 2 . Extermination . | . . . Reinforcement 1 | . 1 . Assault . | . . . Garrison . | . . . Intercept . | . . . Searches Triggered . | . . . Construction Impeded . | . . . Haulers Reinforced . | . . . Active Scanning Responses . | . . . Cargo Convoy Interrupts . | . . . Stealth | -11 -10 -10 --------- Run | Jun Mat Min Distress Signals . | . . . Communications Jammed . | . . . Distress Signals . | . . . Times Spotted 28 | . 23 5 Peak Tracking Total 4 | . 4 4 Tactical Retreats 1 | . . 1 Traps | -11 -10 -10 ------- Run | Jun Mat Min Traps Triggered . | . . . Indirectly . | . . . Trap Hack Attempts . | . . . Triggered . | . . . Disarmed . | . . . Reprogrammed . | . . . Reused . | . . . Traps Extracted . | . . . Installed . | . . . Triggered . | . . . Machines | -11 -10 -10 ---------- Run | Jun Mat Min Machines Disabled . | . . . Max in Single Turn . | . . . Machines Repaired . | . . . Machines Sabotaged . | . . . Overloaded Fab Kills . | . . . Hacking | -11 -10 -10 --------- Run | Jun Mat Min Machines Accessed 10 | . 9 1 Terminals 7 | . 6 1 Fabricators . | . . . Repair Stations 1 | . 1 . Recycling Units 2 | . 2 . Scanalyzers . | . . . Garrison Access . | . . . Total Hacks 32 | . 30 2 Successful 20 | . 19 1 Failed 12 | . 11 1 Catastrophic 1 | . 1 . Database Lockouts . | . . . Manual 13 | . 13 . Terminals 23 | . 21 2 Fabricators . | . . . Repair Stations 3 | . 3 . Recycling Units 6 | . 6 . Scanalyzers . | . . . Garrison Access . | . . . Terminal Hacks 11 | . 10 1 Robot Analysis 1 | . 1 . Prototype ID Bank 3 | . 3 . Terminal Index 1 | . 1 . Locate Traps 3 | . 3 . Patrol Status 1 | . 1 . Hauler Manifests 1 | . 1 . Zone Layout 1 | . . 1 Fabricator Hacks . | . . . Repair Station Hacks 3 | . 3 . Scan Component 2 | . 2 . Repair 1 | . 1 . Recycling Unit Hacks 2 | . 2 . Report Inventory 2 | . 2 . Scanalyzer . | . . . Garrison Access Hacks . | . . . Unauthorized Hacks 4 | . 4 . Terminals 2 | . 2 . Botnet 2 | . 2 . Fabricators . | . . . Repair Stations . | . . . Recycling Units 2 | . 2 . Reject 1 | . 1 . Tunnel 1 | . 1 . Scanalyzers . | . . . Garrison Access . | . . . Data Cores Recovered . | . . . Used . | . . . Hacking Detections 9 | . 8 1 Full Trace Events 1 | . 1 . Feedback Events . | . . . Feedback Blocked . | . . . Robot Schematics Acquired . | . . . Robots Built . | . . . Authchips . | . . . Time . | . . . Total Robot Build Rating . | . . . Part Schematics Acquired . | . . . Parts Built . | . . . Authchips . | . . . Time . | . . . Total Part Build Rating . | . . . Parts Repaired 1 | . 1 . Time 26 | . 26 . Parts Recycled . | . . . Recycled Matter . | . . . Retrieved Matter . | . . . Retrieved Components . | . . . Parts Scanalyzed . | . . . Part Schematics Acquired . | . . . Parts Damaged . | . . . Bothacking | -11 -10 -10 ------------ Run | Jun Mat Min Used RIF Installer . | . . . Robots Hacked . | . . . Non-combat . | . . . Combat . | . . . Robot Hacks Applied . | . . . Relay Couplers Released . | . . . Fabnet Peak Effective % . | . . . Robots Rewired . | . . . Allies Hacked . | . . . Hacks Repelled . | . . . Allies | -11 -10 -10 -------- Run | Jun Mat Min Total Allies . | . . . Largest Group . | . . . Highest-Rated Group . | . . . Highest-Rated Ally . | . . . Total Orders . | . . . Ally Attacks . | . . . Total Damage . | . . . Kills . | . . . Allies Corrupted . | . . . Allies Melted . | . . . Intel | -11 -10 -10 ------- Run | Jun Mat Min Robot Analysis Total 1 | . 1 . Derelict Logs Recovered 3 | . . 3 Drone Launches . | . . . Drone Recoveries . | . . . Exploration | -11 -10 -10 ------------- Run | Jun Mat Min Turns Passed 2382 | 96 1660 626 Spaces Moved 1569 | 81 1002 486 Core 37 | 32 5 . Treads 675 | 7 668 . Legs 79 | . . 79 Wheels 778 | 42 329 407 Hover . | . . . Flight . | . . . Fastest Speed 50 | 50 100 90 Average Speed 127 | 97 140 106 Slowest Speed 250 | 200 250 190 Overloaded Moves . | . . . Propulsion Burnouts . | . . . Robots Hopped . | . . . Cave-ins Triggered . | . . . Exploration Rate (%) 63 | 5 94 92 Regions Visited 2 Branch Regions 1 Pre-discovered Areas 2 | . 1 1 Known Exits Taken . | . . . Unknown Exits Taken 2 | 1 1 . Scrap Searched 2 | . . 2 Spaces Dug . | . . . Terrain Destroyed . | . . . Melee . | . . . Projectile . | . . . AOE . | . . . Terrain Rammed . | . . . Walls Destroyed . | . . . Machines Disabled . | . . . Actions | -11 -10 -10 --------- Run | Jun Mat Min Total 1821 | 95 1155 571 Wait 136 | . 69 67 Move 1567 | 80 1001 486 Hop . | . . . Pick Up 13 | 5 8 . Fast Attach 16 | 7 7 2 Attach 6 | 1 2 3 Detach 4 | 2 2 . Swap 5 | . 4 1 Drop 14 | . 13 1 Fire 14 | . 14 . Melee 45 | . 34 11 Ram 1 | . 1 . Kick . | . . . Crush . | . . . Escape Stasis . | . . . Rewire . | . . . Trap . | . . . Miscellaneous . | . . . Route ------- -11/Junkyard -10/Materials (discovered 5 exits: *Mat x3 / *Min x2) -10/Mines (discovered 2 exits: *Mat x2) History --------- Turn | Location | Event 7 | -11/Junkyard | Discovered new exit (range 15) 97 | -11/Junkyard | Entered Materials 187 | -10/Materials | Discovered new exit (range 15) 313 | -10/Materials | Build established: Mutant 538 | -10/Materials | Core integrity fell below 50% 670 | -10/Materials | Discovered new exit (range 9) 732 | -10/Materials | Repaired Mining Claw 915 | -10/Materials | Discovered new exit (range 16) 1160 | -10/Materials | Discovered new exit (range 16) 1449 | -10/Materials | Discovered new exit (range 5) 1757 | -10/Materials | Entered Mines 1799 | -10/Mines | Learned 4 Materials zone layouts 1874 | -10/Mines | Learned location of Zion (-6) 1897 | -10/Mines | Identified exit to Materials 1995 | -10/Mines | Discovered exit to Materials (range 8) 2234 | -10/Mines | Core integrity fell below 20% 2287 | -10/Mines | Lost 4 parts (1p2n1u) 2383 | -10/Mines | Destroyed by G-47 Trooper with Particle Gun Last Messages --------------- 02250_ Sensor Array destroyed. 02255_ G-34 Mercenary destroyed. 02256_ Wheel destroyed. 02258_ G-34 Mercenary destroyed. 02259_ R-06 Scavenger collects Aluminum Leg. 02262_ R-06 Scavenger collects Sml. Laser. 02264_ Acquired 10 matter. 02266_ R-06 Scavenger collects Particle Gun. 02311_ Acquired Aluminum Leg. 02321_ A derelict emerges from the shadows: "What are you doing alone down here?" 02324_ JT-VJH(g): "Well, at least you look like you can take care of yourself!" 02326_ JT-VJH(g): "I have the funny feeling that things are about to get a lot worse around here, see you around!" 02326_ JT-VJH(g) slips back into the shadows. 02348_ T-07 Excavator is excavating. 02377_ Ion Engine destroyed. 02377_ Critical hit (Burn: +37). 02383_ U-05 Engineer builds a Door. Map ----- +----------------------------------------------------+ | | | | | | | | | | | | | | | | | | | ????????????????????????????????????????????? | | ????????????????????????????????????????????? | | ????????????????????????????????????????????? | | ????????????????????????###?????????????????? | | #???????######?????????# ###??????????????? | | ##?????## ##????????? ???????????????? | | ##????# #???###### #???????????????? | | ###??# ##### ## #???????????????? | | ##??# # #???????????????? | | # #??## ##t+#????????????????? | | # #???######## ###u #????????????????? | | # ##?????????# ! ### #????????????????? | | ##????????## ! #????????????????? | | ##????????## ### #????????????????? | | # #?????????## ###g #### #???????????? | | ## #????#######! #???????????? | | ### #????# ! ###@ ######???????????? | | ## #????# #####* #?# #????????????????? | | #????# #???# ##?# ###??????????????? | | #????#*#???###??# ##?????????????? | | ##???#%#????????# #?????????????? | | # ##### #????????# ##????????????? | | ## !#????????# #????????????? | | ?### %#????????# #???????????? | | ???## ######???????# #??????????? | | ???## #???????###??# #?????????? | | ???# #??????## ## """" #????????? | | ???# ##?###??# """" #????????? | | ???# ##??# ##?# """" #????????? | | ???# #???# #??# #????????? | | ???# ##??# #??## ## ? ##????????? | | ???# ##?# #???# ##?????##?????????? | | ???# ### #???## #??????????????????? | | ??## ##???## ###??????????????????? | | ### ###### #????????????????????? | | #### #?????????????####???? | | #### #??# #????????????## ##??? | | ###???# #??# ####?????????#### #??? | | ??###?# #??## #####??????????### #??? | | ### #?# #???####?????????????## ##?? | | # #?# #????????????????????# #?? | +----------------------------------------------------+ Best States ------------- Heat Dissipation 35 Energy Generation 10 Energy Capacity 250 Matter Stores 300 Matter Capacity 300 Sight Range 16 Robot Scan Range 14 Terrain Scan Range 14 Terrain Scan Density 10 Evasion (%) 55 Recoil Reduction 2 Authchip Count 1 Item Schematics ----------------- None Robot Schematics ------------------ None Fabricated ------------ Nothing Alien Tech Used ----------------- None Achievements -------------- None Challenges ------------ None Game ------ Seed HypercooledDroneSubcomponent Manual? 0 Play Time 00:22:34 Cumulative 74.0 hours Start 2023.03.11 @ 16:24:25 End 2023.03.11 @ 16:45:58 Sessions 1 Manual Loads 0 Difficulty Rogue Special Mode None Game No. 57 Rogue 57 Adventurer 0 Explorer 0 Win Type - Total 0 Types 0/0/0/0/0/0/0/0/0 Lore% 45 Gallery% 44 Achievement% 35 Wizard Run 0 Options --------- ASCII 0 Keyboard 1 Movement Numpad Keybinds 0 Fullscreen 2 Font 18/SmallcapsGlow Map View 76x50 Tactical HUD 1 Map Filters NONE Filters NONE Steam 1 RUN: 8bb3ece0-390a-4ced-af3f-8843711316ec